Workbook

Sheet Лист1
A1: Школа | C1: ГБОУ "Сабинская школа-интернат для детей с ОВЗ" | F1: Согласовал: | G1: должность | H1: Директор школы
A2: Типовое примерное меню приготавливаемых блюд | G2: фамилия | H2: Нуриева Д.Б.
A3: Возрастная категория | E3: 7-11 лет | G3: дата | H3: 1 | I3: 9 | J3: 2023
H4: день | I4: месяц | J4: год
A5: Неделя | B5: День недели | C5: Прием пищи | D5: Раздел меню | E5: Блюда | F5: Вес блюда, г | G5: Белки | H5: Жиры | I5: Углеводы | J5: Калорийность | K5: № рецептуры | L5: Цена
A6: 1 | B6: 1 | C6: Завтрак | D6: гор.блюдо | E6: ='[1]1'!$D$8 -> каша геркулесовая | F6: 250 | G6: 6.9 | H6: 0.75 | I6: 44.25 | J6: 211.5 | K6: 365 | L6: 9.25
D8: гор.напиток | E8: ='[1]1'!$D$9 -> кофейный напиток | F8: 200 | G8: 3.2 | H8: 2.7 | I8: 10.9 | J8: 109.5 | K8: 345 | L8: 9.25
D9: хлеб | E9: хлеб пшеничный с маслом и сыром | F9: 90/20/12 | G9: 5.9 | H9: 6.4 | I9: 16 | J9: 150 | K9: =$K$6 -> 365 | L9: 21.29
D10: хлеб | E10: хлеб ржаной | F10: 50 | G10: 2.6 | H10: 0.6 | I10: 22.15 | J10: 67.2 | K10: =$K$9 -> 365 | L10: 3.05
D13: итого | F13: =SUM(F6:F12) -> 500 | G13: =SUM(G6:G12) -> 18.6 | H13: =SUM(H6:H12) -> 10.45 | I13: 93.3 | J13: 538.2 | L13: =SUM(L6:L12) -> 42.84
A14: =A6 -> 1 | B14: 1 | C14: обед | D14: закуска | E14: салат из свеклы отварной | F14: 120 | G14: 1.05 | H14: 1.9 | I14: 2.9 | J14: 26.11 | K14: 79 | L14: 2.69
D15: 1 блюдо | E15: суп овощной со сметаой | F15: 300 | G15: 7.41 | H15: 13.47 | I15: 8.99 | J15: 94.2 | K15: 608:759 | L15: 4.55
D16: 2 блюдо | E16: овощное рагу с мясом птицы | F16: 250 | G16: 22.18 | H16: 25.11 | I16: 15.9 | J16: 344.54 | K16: 337 | L16: 54.94
D17: гарнир
D18: напиток | E18: компот | F18: 200 | G18: 0.48 | H18: 0 | I18: 22.37 | J18: 118.02 | K18: 943 | L18: 2.48
D19: хлеб бел. | E19: хлеб пшеничный | F19: 50 | G19: 4.61 | H19: 0.71 | I19: 30.16 | J19: 118.85 | K19: 365 | L19: 3.4
D20: хлеб черн. | E20: хлеб ржаной | F20: 50 | G20: 2.6 | H20: 0.6 | I20: 22.15 | J20: 67.2 | K20: 365 | L20: 3.03
D23: итого | F23: =SUM(F14:F22) -> 970 | G23: =SUM(G14:G22) -> 38.33 | H23: 41.79 | I23: 102.47 | J23: 768.92 | L23: =SUM(L14:L22) -> 71.09
A24: 1 | B24: 1 | C24: Полдник | D24: сладкое | E24: печенье | F24: 40 | G24: 3.5 | H24: 3.9 | I24: 32.2 | J24: 196.5 | K24: 384 | L24: 3.66
D25: напиток | E25: ряженка | F25: 180 | G25: 5.8 | H25: 5 | I25: 8.4 | J25: 108 | K25: 943 | L25: 17.38
D26: фрукты | E26: яблоко | F26: 150 | G26: 0.6 | H26: 0.6 | I26: 10.7 | J26: 70.5 | K26: 48 | L26: 18
D28: итого | F28: =SUM(F24:F27) -> 370 | G28: =SUM(G24:G27) -> 9.9 | H28: =SUM(H24:H27) -> 9.5 | I28: =SUM(I24:I27) -> 51.3 | J28: =SUM(J24:J27) -> 375 | L28: =SUM(L24:L27) -> 39.04
A29: 1 | B29: 1 | C29: Ужин | D29: 2 блюдо | E29: картофельное пюре | F29: 150 | G29: 22.74 | H29: 12.98 | I29: 43.72 | J29: 393.78 | K29: 667 | L29: 18
D30: гарнир | E30: суфле рыбное | F30: 180 | G30: 16 | H30: 6.8 | I30: 2.8 | J30: 160.6 | K30: 299 | L30: 97.16
D31: напиток | E31: чай с сахаром | F31: 200 | G31: 3.5 | H31: 3.82 | I31: 24.69 | J31: 151.44 | K31: 958 | L31: 1.08
D32: хлеб бел. | E32: хлеб пшеничный | F32: 80 | G32: 6.04 | H32: 0.87 | I32: 39.4 | J32: 147.3 | K32: 365 | L32: 5.45
D33: хлеб черн. | E33: хлеб ржаной | F33: 50 | G33: 2.6 | H33: 0.6 | I33: 22.15 | J33: 67.2 | K33: 365 | L33: 3.02
D34: итого | F34: =SUM(F29:F33) -> 660 | G34: =SUM(G29:G33) -> 50.88 | H34: =SUM(H29:H33) -> 25.07 | I34: =SUM(I29:I33) -> 132.76 | J34: =SUM(J29:J33) -> 920.32 | L34: =SUM(L29:L33) -> 124.71
A35: 1 | B35: 1 | C35: Ужин перед сном | D35: напиток | E35: сок фруктовый | F35: 200 | G35: 0 | H35: 0 | I35: 17.5 | J35: 44.8 | K35: 387 | L35: 13.27
D37: итого | F37: =SUM(F35:F36) -> 200 | G37: =SUM(G35:G36) -> 0 | H37: =SUM(H35:H36) -> 0 | I37: =SUM(I35:I36) -> 17.5 | J37: =SUM(J35:J36) -> 44.8 | L37: =SUM(L35:L36) -> 13.27
A38: 1 | B38: 1 | C38: Итого за день: | F38: =F13+F23+F28+F34+F37 -> 2700 | G38: =G13+G23+G28+G34+G37 -> 117.71 | H38: =H13+H23+H28+H34+H37 -> 86.81 | I38: =I13+I23+I28+I34+I37 -> 397.33 | J38: =J13+J23+J28+J34+J37 -> 2647.24 | L38: =L13+L23+L28+L34+L37 -> 290.95
A39: 1 | B39: 2 | C39: Завтрак | D39: гор.блюдо | E39: каша манная молочная | F39: 250 | G39: 6.9 | H39: 0.75 | I39: 44.25 | J39: 211.5 | K39: 395 | L39: 14.14
D41: гор.напиток | E41: какао с молоком | F41: 200 | G41: 3.2 | H41: 2.7 | I41: 10.9 | J41: 109.5 | K41: 312 | L41: 7.5
D42: хлеб | E42: хлеб пшеничный с маслом и сыром | F42: 90/20/12 | G42: 5.9 | H42: 6.4 | I42: 16 | J42: 150 | K42: 365 | L42: 21.29
D43: хлеб | E43: хлеб ржаной | F43: 50 | G43: 2.6 | H43: 0.6 | I43: 22.15 | J43: 67.2 | K43: 365 | L43: 3.05
D46: итого | F46: =SUM(F39:F45) -> 500 | G46: =SUM(G39:G45) -> 18.6 | H46: =SUM(H39:H45) -> 10.45 | I46: =SUM(I39:I45) -> 93.3 | J46: =SUM(J39:J45) -> 538.2 | L46: 45.98
A47: =A39 -> 1 | B47: =B39 -> 2 | C47: Обед | D47: закуска | E47: салат из белокачанной капусты | F47: 120 | G47: 3.8 | H47: 15.8 | I47: 16.7 | J47: 141 | K47: 185 | L47: 3.34
D48: 1 блюдо | E48: суп картофельный с макаронными изделиями | F48: 300 | G48: 3.01 | H48: 9.8 | I48: 18.1 | J48: 141.2 | K48: 182 | L48: 13.72
D49: 2 блюдо | E49: голубцы ленивые | F49: 250 | G49: 17.7 | H49: 17.4 | I49: 5.3 | J49: 175.5 | K49: 916 | L49: 29.91
D50: гарнир
D51: напиток | E51: компот | F51: 200 | G51: 0.48 | H51: 0 | I51: 22.37 | J51: 118.02 | K51: 943 | L51: 2.48
D52: хлеб бел. | E52: хлеб пшеничный | F52: 50 | G52: 4.61 | H52: 0.71 | I52: 30.16 | J52: 118.85 | K52: 365 | L52: 3.4
D53: хлеб черн. | E53: хлеб ржаной | F53: 50 | G53: 2.6 | H53: 0.6 | I53: 22.15 | J53: 67.2 | K53: 365 | L53: 3.03
D56: итого | F56: =SUM(F47:F55) -> 970 | G56: =SUM(G47:G55) -> 32.2 | H56: =SUM(H47:H55) -> 44.31 | I56: =SUM(I47:I55) -> 114.78 | J56: =SUM(J47:J55) -> 761.77 | L56: 55.88
A57: 1 | B57: 2 | C57: Полдник | D57: сладкое | E57: печенье | F57: 40 | G57: 3.5 | H57: 3.9 | I57: 32.2 | J57: 196.5 | K57: 636 | L57: 3.66
D59: напиток | E59: ряженка | F59: 180 | G59: 5.8 | H59: 5 | I59: 8.4 | J59: 108 | K59: 122 | L59: 7.65
D60: фрукты | E60: груша | F60: 300 | G60: 0.49 | H60: 0.19 | I60: 20.56 | J60: 77 | K60: 847 | L60: 18
D62: итого | F62: =SUM(F57:F61) -> 520 | G62: =SUM(G57:G61) -> 9.79 | H62: =SUM(H57:H61) -> 9.09 | I62: =SUM(I57:I61) -> 61.16 | J62: =SUM(J57:J61) -> 381.5 | L62: =SUM(L57:L61) -> 29.31
A63: 1 | B63: =B57 -> 2 | C63: Ужин | D63: 1 блюдо | E63: картофельное пюре с рыбными котлетами | F63: 250 | G63: 24.8 | H63: 25.1 | I63: 19.8 | J63: 386.7 | K63: 344 | L63: 65.9
D64: сладкое | E64: оладьи с повидлой | F64: 100 | G64: 8.7 | H64: 8.9 | I64: 45.3 | J64: 190.3 | K64: 123 | L64: 17.77
D65: напиток | E65: чай с сахаром | F65: 200 | G65: 3.5 | H65: 3.82 | I65: 24.69 | J65: 151.44 | K65: 356 | L65: 2.22
D66: хлеб бел. | E66: хлеб пшеничный | F66: 75 | G66: 4.61 | H66: 0.71 | I66: 30.16 | J66: 118.85 | K66: 365 | L66: 3.4
D67: хлеб черн. | E67: хлеб ржаной | F67: =F53 -> 50 | G67: 2.6 | H67: 0.6 | I67: 22.15 | J67: 67.2 | K67: 365 | L67: 3.03
D69: итого | F69: =SUM(F63:F68) -> 675 | G69: =SUM(G63:G68) -> 44.21 | H69: =SUM(H63:H68) -> 39.13 | I69: =SUM(I63:I68) -> 142.1 | J69: =SUM(J63:J68) -> 914.49 | L69: =SUM(L63:L68) -> 92.32
A70: 1 | B70: 2 | C70: Ужин перед сном | D70: напиток | E70: сок фруктовый | F70: 200 | G70: 0 | H70: 0 | I70: 17.5 | J70: 44.8 | K70: 387 | L70: 13.27
D72: итого | F72: =SUM(F70+F71) -> 200 | I72: =I70+I71 -> 17.5 | J72: =J70+J71 -> 44.8 | L72: =L70+L71 -> 13.27
A73: =A57 -> 1 | B73: =B57 -> 2 | C73: Итого за день: | F73: =F46+F56+F62+F69+F72 -> 2865 | G73: =G46+G56+G62+G69+G72 -> 104.8 | H73: =H46+H56+H62+H69+H72 -> 102.98 | I73: =I46+I56+I62+I69+I72 -> 428.84 | J73: =J46+J56+J62+J69+J72 -> 2640.76 | L73: =L46+L56+L62+L69+L72 -> 236.76
A74: 1 | B74: 3 | C74: Завтрак | D74: гор.блюдо | E74: каша гречневая молочная жидкая | F74: 250 | G74: 7.6 | H74: 18.9 | I74: 25.8 | J74: 224.9 | K74: 384 | L74: 19.68
D76: гор.напиток | E76: кофейный напиток | F76: 200 | G76: 3.2 | H76: 2.7 | I76: 10.9 | J76: 109,Ю5 | K76: 943 | L76: 9.25
D77: хлеб | E77: хлеб пшеничный с маслом и сыром | F77: 90/20/12 | G77: 5.9 | H77: 6.4 | I77: 16 | J77: 150 | K77: 365 | L77: 21.29
D78: хлеб | E78: хлеб ржаной | F78: 50 | G78: 2.6 | H78: 0.6 | I78: 22.15 | J78: 67.2 | K78: 365 | L78: 3.03
D80: итого | F80: =SUM(F74:F79) -> 500 | G80: =SUM(G74:G79) -> 19.3 | H80: =SUM(H74:H79) -> 28.6 | I80: =SUM(I74:I79) -> 74.85 | J80: =SUM(J74:J79) -> 442.1 | L80: =SUM(L74:L79) -> 53.25
A81: =A74 -> 1 | B81: =B74 -> 3 | C81: Обед | D81: закуска | E81: салат из свеклы | F81: 120 | G81: 1.05 | H81: 1.9 | I81: 2.9 | J81: 26.11 | K81: 82 | L81: 2.69
D82: 1 блюдо | E82: суп овощной со сметаной | F82: 300 | G82: 7.41 | H82: 13.47 | I82: 8.99 | J82: 94.2 | K82: 63 | L82: 4.55
D83: 2 блюдо | E83: жаркое по домашнему с мясом птицы | F83: 250 | G83: 22.18 | H83: 25.11 | I83: 15.9 | J83: 344.54 | K83: 2013 | L83: 36.86
D84: гарнир
D85: напиток | E85: компот | F85: 200 | G85: 0.48 | H85: 0 | I85: 23.37 | J85: 118.02 | K85: 943 | L85: 2.48
D86: хлеб бел. | E86: хлеб пшеничный | F86: 50 | G86: 4.61 | H86: 0.71 | I86: 30.16 | J86: 118.85 | K86: 365 | L86: 3.4
D87: хлеб черн. | E87: хлеб ржаной | F87: 50 | G87: 2.6 | H87: 0.6 | I87: 22.15 | J87: 67.2 | K87: 365 | L87: 3.05
D91: итого | F91: =SUM(F81:F90) -> 970 | G91: =SUM(G81:G90) -> 38.33 | H91: 41.79 | I91: 103.47 | J91: 768.92 | L91: =SUM(L81:L90) -> 53.03
A92: 1 | B92: 3 | C92: Полдник | D92: гарнир | E92: картофель в мундире | F92: 150 | G92: 1.54 | H92: 0.2 | I92: 21.47 | J92: 114 | K92: 384 | L92: 2.32
D94: напиток | E94: молоко кипяченое | F94: 200 | G94: 4.4 | H94: 10 | I94: 7.2 | J94: 70.5 | K94: 943 | L94: 12.19
D95: фрукты | E95: груша | F95: 268 | G95: 0.49 | H95: 0.19 | I95: 20.56 | J95: 77 | K95: 847 | L95: 24.12
D98: итого | F98: =SUM(F92:F97) -> 618 | G98: =SUM(G92:G97) -> 6.43 | H98: =SUM(H92:H97) -> 10.39 | I98: =SUM(I92:I97) -> 49.23 | J98: =SUM(J92:J97) -> 261.5 | L98: =SUM(L92:L97) -> 38.63
A99: =A92 -> 1 | B99: =B92 -> 3 | C99: Ужин | D99: 1 блюдо | E99: плов из отварной говядины | F99: 250 | G99: 13.6 | H99: 13.2 | I99: 29.7 | J99: 265 | K99: 36 | L99: 37
D100: сладкое
D101: напиток | E101: какао с молоком | F101: 200 | G101: 3.3 | H101: 3.2 | I101: 23.28 | J101: 131.6 | K101: 943 | L101: 7.51
D102: хлеб бел. | E102: хлеб пшеничный | F102: 42 | G102: 4.61 | H102: 0.71 | I102: 30.16 | J102: 118.85 | K102: 365 | L102: 3.4
D103: хлеб черн. | E103: хлеб ржаной | F103: 62 | G103: 2.6 | H103: 0.6 | I103: 22.15 | J103: 67.2 | K103: 365 | L103: 3.71
D106: итого | F106: =SUM(F99:F105) -> 554 | G106: =SUM(G99:G105) -> 24.11 | H106: =SUM(H99:H105) -> 17.71 | I106: =SUM(I99:I105) -> 105.29 | J106: =SUM(J99:J105) -> 582.65 | L106: =SUM(L99:L105) -> 51.62
A107: 1 | B107: 3 | C107: Ужин перед сном | D107: напиток | E107: сок фруктовый | F107: 200 | G107: 0 | H107: 0 | I107: 17.5 | J107: 44.8 | K107: 387 | L107: 13.27
D108: итого | F108: =F107 -> 200 | I108: =I107 -> 17.5 | J108: =J107 -> 44.8 | L108: =L107 -> 13.27
A109: =A92 -> 1 | B109: =B92 -> 3 | C109: Итого за день: | F109: =F80+F91+F98+F106+F108 -> 2842 | G109: =G80+G91+G98+G106+G108 -> 88.17 | H109: =H80+H90+H98+H106+H108 -> 56.7 | I109: =I80+I91+I98+I106+I108 -> 350.34 | J109: =J80+J91+J98+J106+J108 -> 2099.97 | L109: =L80+L91+L98+L106+L108 -> 209.8
A110: 1 | B110: 4 | C110: Завтрак | D110: гор.блюдо | E110: каша рисовая молочная жидкая | F110: 250 | G110: 5.8 | H110: 11.1 | I110: 28.3 | J110: 229.9 | K110: 340 | L110: 18.36
D112: гор.напиток | E112: кисель из концентраторов ягодного и плодового | F112: 200 | G112: 1.4 | H112: 0 | I112: 29 | J112: 122 | K112: 943 | L112: 2.17
D113: хлеб | E113: хлеб пшеничный с маслом и сыром | F113: 90/20/12 | G113: 5.9 | H113: 6.4 | I113: 16 | J113: 150 | K113: 365 | L113: 21.29
D114: хлеб | E114: хлеб рханой | F114: 50 | G114: 2.6 | H114: 0.6 | I114: 22.15 | J114: 67.2 | K114: 365 | L114: 3.05
D117: итого | F117: =SUM(F110:F116) -> 500 | G117: =SUM(G110:G116) -> 15.7 | H117: 18.1 | I117: 95.45 | J117: 569.1 | L117: =SUM(L110:L116) -> 44.87
A118: =A110 -> 1 | B118: =B110 -> 4 | C118: Обед | D118: закуска | E118: салат из моркови | F118: 160 | G118: 1.8 | H118: 15.3 | I118: 10.8 | J118: 198 | K118: 332 | L118: 3.57
D119: 1 блюдо | E119: суп картофельный с мясными фрикадельками | F119: 300 | G119: 3.16 | H119: 9.24 | I119: 15.16 | J119: 110.72 | K119: 303 | L119: 24.25
D120: 2 блюдо | E120: картофельное пюре с морковью | F120: 250 | G120: 2.5 | H120: 8.9 | I120: 11.4 | J120: 106.8 | K120: 608 | L120: 12.84
D121: гарнир
D122: напиток | E122: компот | F122: 200 | G122: 0.48 | H122: 0 | I122: 23.37 | J122: 118.02 | K122: 943 | L122: 2.48
D123: хлеб бел. | E123: хлеб пшеничный | F123: 50 | G123: 4.61 | H123: 0.71 | I123: 30.16 | J123: 118.85 | K123: 365 | L123: 3.4
D124: хлеб черн. | E124: хлеб ржаной | F124: 50 | G124: 2.6 | H124: 0.6 | I124: 22.15 | J124: 67.2 | K124: 365 | L124: 3.05
D127: итого | F127: =SUM(F118:F126) -> 1010 | G127: =SUM(G118:G126) -> 15.15 | H127: 34.75 | I127: 113.04 | J127: 719.59 | L127: =SUM(L118:L126) -> 49.59
A128: 1 | B128: 4 | C128: Полдник | D128: сладкое | E128: вафли | F128: 20 | G128: 1.11 | H128: 1.72 | I128: 30.5 | J128: 95.28 | K128: 469 | L128: 3.84
D130: напиток | E130: ряженка | F130: 200 | G130: 4.1 | H130: 4.2 | I130: 7.65 | J130: 94.1 | K130: 943 | L130: 19.31
D131: фрукты | E131: яблоко | F131: 300 | G131: 5.99 | H131: 4.37 | I131: 29.63 | J131: 190.7 | K131: 765 | L131: 30
D133: итого | F133: =SUM(F128:F132) -> 520 | G133: =SUM(G128:G132) -> 11.2 | H133: =SUM(H128:H132) -> 10.29 | I133: =SUM(I128:I132) -> 67.78 | J133: =SUM(J128:J132) -> 380.08 | L133: =SUM(L128:L132) -> 53.15
A134: 1 | B134: =B128 -> 4 | C134: Ужин
D135: 1 блюдо | E135: рыба запеченная в омлете | F135: 200 | G135: 22.65 | H135: 20.5 | I135: 3.8 | J135: 151.8 | K135: 170 | L135: 97.14
D136: напиток | E136: чай с молоком | F136: 200 | G136: 1.04 | H136: 6.8 | I136: 13 | J136: 62 | K136: 945 | L136: 5.49
D137: хлеб бел. | E137: хлеб пшеничный | F137: 63 | G137: 4.61 | H137: 0.71 | I137: 30.16 | J137: 118.85 | K137: 365 | L137: 4.08
D138: хлеб черн. | E138: хлеб ржаной | F138: 50 | G138: 2.6 | H138: 0.6 | I138: 22.15 | J138: 67.2 | K138: 365 | L138: 3.03
D139: сладкое | E139: пирожки печеный из сдобного теста с капустой | F139: 120 | G139: 6.3 | H139: 16.9 | I139: 16.3 | J139: 132 | K139: 56 | L139: 11.78
D141: итого | F141: =SUM(F134:F140) -> 633 | G141: =SUM(G134:G140) -> 37.2 | H141: =SUM(H134:H140) -> 45.51 | I141: =SUM(I134:I140) -> 85.41 | J141: =SUM(J134:J140) -> 531.85 | L141: =SUM(L134:L140) -> 121.52
A142: =A128 -> 1 | B142: =B128 -> 4 | C142: Итого за день: | F142: =F117+F127+F133+F141 -> 2663 | G142: =G117+G127+G133+G141 -> 79.25 | H142: =H117+H127+H133+H141 -> 108.65 | I142: =I117+I127+I133+I141 -> 361.68 | J142: =J117+J127+J133+J141 -> 2200.62 | L142: =L117+L127+L133+L141 -> 269.13
A143: 1 | B143: 5 | C143: Завтрак | D143: гор.блюдо | E143: Каша пшенная молочная жидкая | F143: 250 | G143: 8.1 | H143: 9.8 | I143: 35.9 | J143: 290.6 | K143: 384 | L143: 15.3
D145: гор.напиток | E145: кофейный напиток | F145: 200 | G145: 1.9 | H145: 2.1 | I145: 8.5 | J145: 85.5 | K145: 943 | L145: 5.97
D146: хлеб | E146: хлеб пшеничный с маслом и сыром | F146: 90/20/12 | G146: 5.9 | H146: 6.4 | I146: 16 | J146: 150 | K146: 365 | L146: 21.29
D147: хлеб | E147: хлеб рханой | F147: 50 | G147: 2.6 | H147: 0.6 | I147: 22.15 | J147: 67.2 | K147: 365 | L147: 3.05
D150: итого | F150: =SUM(F143:F149) -> 250 | G150: =SUM(G143:G149) -> 18.5 | H150: 18.9 | I150: 82.55 | J150: 593.3 | L150: =SUM(L143:L149) -> 45.61
A151: 1 | B151: =B143 -> 5 | C151: Обед | D151: закуска | E151: салат из капусты с морковью | F151: 150 | G151: 1.35 | H151: 6.5 | I151: 6.27 | J151: 72.1 | K151: 42 | L151: 3.34
D152: 1 блюдо | E152: борщ с капустой и картофелем со сметаной | F152: 300 | G152: 3.18 | H152: 11.6 | I152: 16.06 | J152: 170.84 | K152: 86 | L152: 7.85
D153: 2 блюдо | E153: плов из отварной птицы | F153: 250 | G153: 17.6 | H153: 18.8 | I153: 40.1 | J153: 350.9 | K153: 462/759 | L153: 24.93
D154: напиток | E154: компот | F154: 200 | G154: 0.48 | H154: 0 | I154: 22.37 | J154: 118.02 | K154: 393 | L154: 2.48
D155: хлеб бел. | E155: хлеб пшеничный | F155: 50 | G155: 4.61 | H155: 0.71 | I155: 30.16 | J155: 118.85 | K155: 365 | L155: 3.4
D156: хлеб черн. | E156: хлеб ржаной | F156: 50 | G156: 2.6 | H156: 0.6 | I156: 22.15 | J156: 67.2 | K156: 365 | L156: 3.03
D159: итого | F159: =SUM(F151:F158) -> 750 | G159: =SUM(G151:G158) -> 29.82 | H159: =SUM(H151:H158) -> 38.21 | I159: =SUM(I151:I158) -> 137.11 | J159: =SUM(J151:J158) -> 897.91 | L159: =SUM(L151:L158) -> 45.03
A160: 1 | B160: 5 | C160: Полдник
D161: напиток | E161: ряженка | F161: 180 | G161: 4.1 | H161: 4.2 | I161: 7.85 | J161: 94.1 | K161: 943 | L161: 17.38
D162: сладкое | E162: вафли | F162: 20 | G162: 1.11 | H162: 1.72 | I162: 30.5 | J162: 96.28 | K162: 76 | L162: 3.06
D163: фрукты | E163: апельсин | F163: 150 | G163: 1.89 | H163: 0.17 | I163: 21.98 | J163: 96.6 | K163: 456 | L163: 9.48
D165: итого | F165: =SUM(F161+F162+F163) -> 350 | G165: =SUM(G160:G164) -> 7.1 | H165: =SUM(H160:H164) -> 6.09 | I165: =SUM(I160:I164) -> 60.33 | J165: =SUM(J160:J164) -> 286.98 | L165: =SUM(L160:L164) -> 29.92
A166: =A160 -> 1 | B166: 5 | C166: Ужин | D166: гарнир | E166: картофельное пюре | F166: 250 | G166: 3.2 | H166: 6.1 | I166: 14.8 | J166: 120.6 | K166: 654 | L166: 13.24
D167: 2 блюдо | E167: гуляш из говядины | F167: 100 | G167: 23.4 | H167: 23.4 | I167: 1964-05-01 | J167: 197 | K167: 453 | L167: 34.32
D168: напиток | E168: какао с молоком | F168: 200 | G168: 3.1 | H168: 3.45 | I168: 21.87 | J168: 128.6 | K168: 287 | L168: 7.76
D169: хлеб бел. | E169: хлеб пшеничный | F169: 50 | G169: 4.61 | H169: 0.71 | I169: 30.16 | J169: 118.85 | K169: 365 | L169: 3.7
D170: хлеб черн. | E170: хлеб ржаной | F170: 48 | G170: 2.6 | H170: 0.6 | I170: 22.15 | J170: 67.2 | K170: 365 | L170: 3.51
D172: итого | F172: =SUM(F166:F171) -> 300 | G172: =SUM(G166:G171) -> 36.91 | H172: =SUM(H166:H171) -> 34.26 | I172: =SUM(I166:I171) -> 23586.98 | J172: =SUM(J166:J171) -> 632.25 | L172: =SUM(L166:L171) -> 62.53
A173: 1 | B173: 5 | C173: Ужин перед сном | D173: напиток | E173: сок фруктовый | F173: 200 | G173: 0 | H173: 0 | I173: 17.5 | J173: 44.8 | K173: 387 | L173: 13.27
D174: итого | F174: 200 | I174: 17.5 | J174: 44.8 | L174: 13.27
A175: =A160 -> 1 | B175: =B160 -> 5 | C175: Итого за день: | F175: =F150+F159+F165+F172+F174 -> 1850 | G175: =G150+G159+G165+G172+G174 -> 92.33 | H175: =H150+H159+H165+H172+H174 -> 97.46 | I175: =I150+I159+I165+I172+J174 -> 23911.77 | J175: =J150+J159+J165+J172+J174 -> 2455.24 | L175: =L150+L159+L165+L172+L174 -> 196.36
A176: 2 | B176: 1 | C176: Завтрак | D176: гор.блюдо | E176: каша рисовая молочная жидкая | F176: 250 | G176: 5.8 | H176: 11.1 | I176: 28.3 | J176: 229.9 | K176: 340 | L176: 18.36
D178: гор.напиток | E178: какао с молоком | F178: 200 | G178: 3.1 | H178: 3.45 | I178: 21.87 | J178: 128.6 | K178: 287 | L178: 7.76
D179: хлеб | E179: хлеб пшеничный | F179: 74 | G179: 4 | H179: 0.71 | I179: 30.16 | J179: 118.85 | K179: =$K$6 -> 365 | L179: 5.04
D180: хлеб | E180: хлеб ржаной | F180: 50 | G180: 2.6 | H180: 0.6 | I180: 22.15 | J180: 67.2 | K180: =$K$9 -> 365 | L180: 3.05
D183: итого | F183: =SUM(F176+F178+F179+F180+F182) -> 574 | G183: =SUM(G176:G182) -> 15.5 | H183: =SUM(H176:H182) -> 15.86 | I183: 102.48 | J183: 544.55 | L183: =SUM(L176:L182) -> 34.21
A184: =A176 -> 2 | B184: 1 | C184: обед | D184: закуска | E184: винегрет овощной | F184: 250 | G184: 6.07 | H184: 18.68 | I184: 27.4 | J184: 230.25 | K184: 79 | L184: 7.27
D185: 1 блюдо | E185: свекольный со сметаой | F185: 300 | G185: 2.57 | H185: 6.2 | I185: 11.4 | J185: 101.4 | K185: 608 | L185: 9.63
D186: 2 блюдо | E186: плов с мясом говядины | F186: 250 | G186: 19.3 | H186: 32.98 | I186: 22.48 | J186: 330.2 | K186: 337 | L186: 47.85
D187: гарнир
D188: напиток | E188: компот | F188: 200 | G188: 0.48 | H188: 0 | I188: 22.37 | J188: 118.02 | K188: 943 | L188: 2.48
D189: хлеб бел. | E189: хлеб пшеничный | F189: 70 | G189: 4.61 | H189: 0.71 | I189: 30.16 | J189: 118.85 | K189: 365 | L189: 4.74
D190: хлеб черн. | E190: хлеб ржаной | F190: 50 | G190: 2.6 | H190: 0.6 | I190: 22.15 | J190: 67.2 | K190: 365 | L190: 3.03
D193: итого | F193: =SUM(F184:F192) -> 1120 | G193: =SUM(G184:G192) -> 35.63 | H193: 59.17 | I193: 135.96 | J193: 965.92 | L193: =SUM(L184:L192) -> 75
A194: 2 | B194: 1 | C194: Полдник | D194: сладкое | E194: печенье | F194: 40 | G194: 3.5 | H194: 3.9 | I194: 32.2 | J194: 196.5 | K194: 384 | L194: 3.66
D195: напиток | E195: ряженка | F195: 200 | G195: 5.8 | H195: 5 | I195: 8.4 | J195: 108 | K195: 943 | L195: 19.31
D196: фрукты | E196: яблоко | F196: 150 | G196: 0.6 | H196: 0.6 | I196: 10.7 | J196: 70.5 | K196: 48 | L196: 18
D198: итого | F198: =SUM(F194:F197) -> 390 | G198: =SUM(G194:G197) -> 9.9 | H198: =SUM(H194:H197) -> 9.5 | I198: =SUM(I194:I197) -> 51.3 | J198: =SUM(J194:J197) -> 375 | L198: =SUM(L194:L197) -> 40.97
A199: 2 | B199: 1 | C199: Ужин | D199: 2 блюдо | E199: картофель отварная дольками | F199: 200 | G199: 22.74 | H199: 12.98 | I199: 43.72 | J199: 393.78 | K199: 667 | L199: 18
D200: гарнир | E200: мясные котлеты | F200: 150 | G200: 30.2 | H200: 36.4 | I200: 19.8 | J200: 384 | K200: 299 | L200: 61.22
D201: напиток | E201: чай с молоком | F201: 200 | G201: 3.5 | H201: 3.82 | I201: 24.69 | J201: 151.44 | K201: 958 | L201: 3.27
D202: хлеб бел. | E202: хлеб пшеничный | F202: 46 | G202: 4.61 | H202: 0.71 | I202: 30.16 | J202: 118.85 | K202: 365 | L202: 4.74
D203: хлеб черн. | E203: хлеб ржаной | F203: 65 | G203: 2.6 | H203: 0.8 | I203: 22.15 | J203: 67.2 | K203: 365 | L203: 3.73
D204: итого | F204: =SUM(F199:F203) -> 661 | G204: =SUM(G199:G203) -> 63.65 | H204: =SUM(H199:H203) -> 54.71 | I204: =SUM(I199:I203) -> 140.52 | J204: =SUM(J199:J203) -> 1115.27 | L204: =SUM(L199:L203) -> 90.96
A205: 2 | B205: 1 | C205: Ужин перед сном | D205: напиток | E205: сок фруктовый | F205: 200 | G205: 0 | H205: 0 | I205: 17.5 | J205: 44.8 | K205: 387 | L205: 13.27
D207: итого | F207: =SUM(F205:F206) -> 200 | G207: =SUM(G205:G206) -> 0 | H207: =SUM(H205:H206) -> 0 | I207: =SUM(I205:I206) -> 17.5 | J207: =SUM(J205:J206) -> 44.8 | L207: =SUM(L205:L206) -> 13.27
A208: 2 | B208: 1 | C208: Итого за день: | F208: =F183+F193+F198+F204+F207 -> 2945 | G208: =G183+G193+G198+G204+G207 -> 124.68 | H208: =H183+H193+H198+H204+H207 -> 139.24 | I208: =I183+I193+I198+I204+I207 -> 447.76 | J208: =J183+J193+J198+J204+J207 -> 3045.54 | L208: =L183+L193+L198+L204+L207 -> 254.41
A209: 2 | B209: 2 | C209: Завтрак | D209: гор.блюдо | E209: каша манная молочная | F209: 250 | G209: 6.9 | H209: 0.75 | I209: 44.25 | J209: 211.5 | K209: 395 | L209: 14.14
D211: гор.напиток | E211: кофейный напиток | F211: 200 | G211: 3.2 | H211: 2.7 | I211: 10.9 | J211: 109.5 | K211: 312 | L211: 5.08
D212: хлеб | E212: хлеб пшеничный с маслом и сыром | F212: 90/20/12 | G212: 5.9 | H212: 6.4 | I212: 16 | J212: 150 | K212: 365 | L212: 24.28
D213: хлеб | E213: хлеб ржаной | F213: 50 | G213: 2.6 | H213: 0.6 | I213: 22.15 | J213: 67.2 | K213: 365 | L213: 3.05
D216: итого | F216: =SUM(F209:F215) -> 500 | G216: =SUM(G209:G215) -> 18.6 | H216: 10.45 | I216: 93.3 | J216: 538.2 | L216: =SUM(L209:L215) -> 46.55
A217: 2 | B217: =B209 -> 2 | C217: Обед | D217: закуска | E217: салат из свеклы отварной | F217: 150 | G217: 2.8 | H217: 3.7 | I217: 5.48 | J217: 56.2 | K217: 185 | L217: 4.16
D218: 1 блюдо | E218: суп картофельный с бобовыми со сметаной | F218: 300 | G218: 2.76 | H218: 6.1 | I218: 12.45 | J218: 140.86 | K218: 182 | L218: 46
D219: 2 блюдо | E219: картофельное пюре | F219: 250 | G219: 17.7 | H219: 17.4 | I219: 5.3 | J219: 175.5 | K219: 916 | L219: 29.91
D220: гарнир | E220: рыбные котлеты | F220: 150 | G220: 20.8 | H220: 22.5 | I220: 31.4 | J220: 473.28 | K220: 65 | L220: 97.23
D221: напиток | E221: компот | F221: 200 | G221: 0.48 | H221: 0 | I221: 22.37 | J221: 118.02 | K221: 943 | L221: 2.48
D222: хлеб бел. | E222: хлеб пшеничный | F222: 50 | G222: 4.61 | H222: 0.71 | I222: 30.16 | J222: 118.85 | K222: 365 | L222: 3.4
D223: хлеб черн. | E223: хлеб ржаной | F223: 50 | G223: 2.6 | H223: 0.6 | I223: 22.15 | J223: 67.2 | K223: 365 | L223: 3.03
D226: итого | F226: =SUM(F217:F225) -> 1150 | G226: =SUM(G217:G225) -> 51.75 | H226: 51.01 | I226: 129.31 | J226: 1149.91 | L226: =SUM(L217:L225) -> 186.21
A227: 2 | B227: 2 | C227: Полдник | D227: сладкое | E227: печенье | F227: 40 | G227: 3.5 | H227: 3.9 | I227: 32.2 | J227: 196.5 | K227: 636 | L227: 3.66
D229: напиток | E229: ряженка | F229: 150 | G229: 4.1 | H229: 4.2 | I229: 7.65 | J229: 94.1 | K229: 122 | L229: 13.16
D230: фрукты | E230: груша | F230: 300 | G230: 0.49 | H230: 0.19 | I230: 20.56 | J230: 77 | K230: 847 | L230: 18
D232: итого | F232: =SUM(F227:F231) -> 490 | G232: =SUM(G227:G231) -> 8.09 | H232: =SUM(H227:H231) -> 8.29 | I232: =SUM(I227:I231) -> 60.41 | J232: =SUM(J227:J231) -> 367.6 | L232: =SUM(L227:L231) -> 34.82
A233: 2 | B233: =B227 -> 2 | C233: Ужин | D233: 1 блюдо | E233: каша гречневая молочная жидкая | F233: 250 | G233: 7.12 | H233: 15.2 | I233: 14.89 | J233: 201.9 | K233: 344 | L233: 14.54
D234: сладкое | E234: пирожки печеные из сдобного теста с повидлом | F234: 120 | G234: 15.6 | H234: 19.42 | I234: 24.25 | J234: 227.8 | K234: 123 | L234: 13.82
D235: напиток | E235: чай с сахаром | F235: 200 | G235: 3.5 | H235: 3.82 | I235: 24.69 | J235: 151.44 | K235: 356 | L235: 2.22
D236: хлеб бел. | E236: хлеб пшеничный | F236: 34 | G236: 4.61 | H236: 0.71 | I236: 30.16 | J236: 118.85 | K236: 365 | L236: 1.63
D237: хлеб черн. | E237: хлеб ржаной | F237: =F223 -> 50 | G237: 2.6 | H237: 0.6 | I237: 22.15 | J237: 67.2 | K237: 365 | L237: 3.03
D239: итого | F239: =SUM(F233:F238) -> 654 | G239: =SUM(G233:G238) -> 33.43 | H239: =SUM(H233:H238) -> 39.75 | I239: =SUM(I233:I238) -> 116.14 | J239: =SUM(J233:J238) -> 767.19 | L239: =SUM(L233:L238) -> 35.24
A240: 2 | B240: 2 | C240: Ужин перед сном | D240: напиток | E240: сок фруктовый | F240: 200 | G240: 0 | H240: 0 | I240: 17.5 | J240: 44.8 | K240: 387 | L240: 13.27
D242: итого | F242: =SUM(F240+F241) -> 200 | I242: =I240+I241 -> 17.5 | J242: =J240+J241 -> 44.8 | L242: =L240+L241 -> 13.27
A243: =A227 -> 2 | B243: =B227 -> 2 | C243: Итого за день: | F243: =F216+F226+F232+F239+F242 -> 2994 | G243: =G216+G226+G232+G239+G242 -> 111.87 | H243: =H216+H226+H232+H239+H242 -> 109.5 | I243: =I216+I226+I232+I239+I242 -> 416.66 | J243: =J216+J226+J232+J239+J242 -> 2867.7 | L243: =L216+L226+L232+L239+L242 -> 316.09
A244: 2 | B244: 3 | C244: Завтрак | D244: гор.блюдо | E244: каша дружба | F244: 250 | G244: 5.9 | H244: 12.1 | I244: 26.3 | J244: 227.2 | K244: 384 | L244: 13.42
D246: гор.напиток | E246: кисель из концентраторов ягодного и плодового | F246: 200 | G246: 1.4 | H246: 0 | I246: 29 | J246: 122 | K246: 943 | L246: 2.17
D247: хлеб | E247: хлеб пшеничный с маслом и сыром | F247: 90/20/12 | G247: 5.9 | H247: 6.4 | I247: 16 | J247: 150 | K247: 365 | L247: 21.29
D248: хлеб | E248: хлеб ржаной | F248: 50 | G248: 2.6 | H248: 0.6 | I248: 22.15 | J248: 67.2 | K248: 365 | L248: 3.03
D250: итого | F250: =SUM(F244:F249) -> 500 | G250: =SUM(G244:G249) -> 15.8 | H250: =SUM(H244:H249) -> 19.1 | I250: =SUM(I244:I249) -> 93.45 | J250: =SUM(J244:J249) -> 566.4 | L250: =SUM(L244:L249) -> 39.91
A251: 2 | B251: =B244 -> 3 | C251: Обед | D251: закуска | E251: салат картофельный с зеленым горошком | F251: 150 | G251: 3.8 | H251: 15.8 | I251: 16.7 | J251: 141 | K251: 82 | L251: 5.52
D252: 1 блюдо | E252: суп молочной макаронными изделиями | F252: 300 | G252: 11.8 | H252: 18.5 | I252: 20 | J252: 147 | K252: 63 | L252: 14.09
D253: 2 блюдо | E253: запеканка капустная с говядиной | F253: 250 | G253: 18.54 | H253: 21.74 | I253: 7.5 | J253: 278.6 | K253: 2013 | L253: 28.28
D254: гарнир
D255: напиток | E255: компот | F255: 200 | G255: 0.48 | H255: 0 | I255: 23.37 | J255: 118.02 | K255: 943 | L255: 2.48
D256: хлеб бел. | E256: хлеб пшеничный | F256: 50 | G256: 4.61 | H256: 0.71 | I256: 30.16 | J256: 118.85 | K256: 365 | L256: 3.4
D257: хлеб черн. | E257: хлеб ржаной | F257: 50 | G257: 2.6 | H257: 0.6 | I257: 22.15 | J257: 67.2 | K257: 365 | L257: 3.05
D261: итого | F261: =SUM(F251:F260) -> 1000 | G261: =SUM(G251:G260) -> 41.83 | H261: 57.35 | I261: 119.88 | J261: 870.67 | L261: =SUM(L251:L260) -> 56.82
A262: 2 | B262: 3 | C262: Полдник | D262: гарнир
... 64 more rows
